{"text_format":"3","workbook":"xlsx","n_sheets":1,"sheets":["Haushaltsbudget"],"not_rendered":{"images":1,"defined_names":1,"comments":1},"read":"whole","date_system":"1900"}

{"sheet":"Haushaltsbudget","index":0,"n_rows":87,"n_cols":8,"rows_kept":87,"merged":[[14,6,14,7],[32,0,32,4],[35,0,35,2],[36,0,36,2],[38,0,38,2],[40,0,40,2],[42,0,42,2],[43,0,43,4],[46,0,46,2],[52,0,52,2],[69,0,69,2],[70,0,70,2],[74,0,74,2],[75,0,75,2],[78,1,78,2]]}
[{"$nulls":5},"Wenn man mit dem Mauszeiger"]
[{"$nulls":5},"über die roten Dreiecke fährt,"]
[{"$nulls":5},"erscheint ein Kommentar."]
[]
[]
["MONATSBUDGET"]
[]
["für"]
[]
["Datum:"]
[]
[]
["Bei allen schwankenden oder unregelmässigen Beträgen müssen die monatlichen Durchschnittswerte erfasst werden."]
[]
["EINKOMMEN"]
[{"$nulls":3},"Mann","Frau","Total"]
["Nettomonatslohn",{"$nulls":4},{"$f":"SUM(D17:E17)","v":0}]
["Kinderzulagen",{"$nulls":4},{"$f":"SUM(D18:E18)","v":0}]
["Alimente",{"$nulls":4},0]
["Renten, Unterstützungen, usw.",{"$nulls":4},0]
["TOTAL EINKOMMEN",{"$nulls":4},{"$f":"SUM(F17:F20)","v":0}]
[]
["AUSGABEN",{"$nulls":4},"Bar pro Monat","Zahlung pro Monat","Rückstellung pro Monat"]
["Wohnungsmiete",{"$nulls":5},0]
["Nebenkosten a konto",{"$nulls":5},0]
["Nebenkosten Schlussrechnung",{"$nulls":6},0]
["Strom / Gas / Wasser",{"$nulls":6},0]
["Telefon (Fixnet und Handies)",{"$nulls":6},0]
["TV/Radio/Billag",{"$nulls":6},0]
["Miete TV, DVD, Video, Stereo usw.",{"$nulls":5},0]
["Krankenkassenprämien",{"$nulls":5},0]
["Jahresfranchisen",{"$nulls":6},0]
["Krankheitskosten, Arztselbstbehalte, Zahnarzt, Dentalhygiene, Therapie, Medikamente, Brillen usw.",{"$nulls":6},0]
["Hausrats- und Haftpflichtversicherung",{"$nulls":6},0]
["Lebensversicherung",{"$nulls":6},0]
["Fahrten zum Arbeitsplatz (ohne Auto)",null,null,0,0,{"$f":"E36+D36","v":0}]
["Auslagen für auswärtige Verpflegung",null,null,0,0,{"$f":"D37+E37","v":0}]
["Steuern (Einkommenssteuern, Feuerwehrabgabe, Militärpflichtersatzabgabe)",{"$nulls":6},0]
["Berufsverbände, Gewerkschaft",null,null,0,0,null,null,{"$f":"D39+E39","v":0}]
["Kleider, Wäsche, Schuhe",{"$nulls":6},0]
["Alimente für Ex-Partnerin",{"$nulls":5},0]
["Alimente für Kind(er)",{"$nulls":5},0]
["Unterstützung von Verwandten",{"$nulls":5},0]
["Haushaltsgeld (Essen, Körperflege, Waschen, Putzen)",{"$nulls":4},0]
["Coiffeur",{"$nulls":4},0]
["Kinder",{"$nulls":4},0]
["- Kita, Kinderbetreuung, Mittagstisch",{"$nulls":5},0]
["- Schule",{"$nulls":6},0]
["- Transporte",{"$nulls":6},0]
["- Kurse und Hobbies",{"$nulls":6},0]
["- Taschengeld",{"$nulls":4},0]
["- Besuchsrecht von Kindern",{"$nulls":4},0]
["Weiterbildung",null,null,0,0,null,null,{"$f":"D53+E53","v":0}]
["Persönliche Auslagen"]
["- Taschengeld",null,null,0,0,{"$f":"D55+E55","v":0}]
["- Rauchen",null,null,0,0,{"$f":"D56+E56","v":0}]
["- Abonnemente",null,null,0,0,null,null,{"$f":"D57+E57","v":0}]
["- Toto, Lotto",null,null,0,0,0]
["- Vereine",null,null,0,0,null,null,{"$f":"D59+E59","v":0}]
["- Hobbies, Bücher, Musik, Spiele, DVDs",null,null,0,0,0]
["- Geschenke",null,null,0,0,0]
["Auto:"]
["- Amortisation",{"$nulls":6},0]
["- Fahrspesen, Benzin",{"$nulls":4},0]
["- Abstellplatz, Garage",{"$nulls":5},0]
["- Reparaturen",{"$nulls":6},0]
["- Motorfahrzeugsteuern",{"$nulls":6},0]
["- Versicherungen",{"$nulls":6},0]
["- Leasingrate",{"$nulls":5},0]
["- Vollkaskoversicherung",{"$nulls":6},0]
["- andere Versicherungen",{"$nulls":6},0]
["- Vignette",{"$nulls":6},0]
["- Pneus",{"$nulls":6},0]
["Weitere Mobilitätskosten",{"$nulls":6},0]
["Möbel, Haushaltsgeräte, Anschaffungen",{"$nulls":6},0]
["Kreditrückzahlung, Raten",{"$nulls":5},0]
["Erholung, Ferien",{"$nulls":6},0]
["Haustiere",{"$nulls":4},0]
["…"]
["…"]
["Total Barzahlungen",{"$nulls":4},{"$f":"SUM(F24:F80)","v":0}]
["Total monatliche Zahlungen",{"$nulls":5},{"$f":"SUM(G24:G81)","v":0}]
["Total Rückstellungen",{"$nulls":6},{"$f":"SUM(H24:H82)","v":0}]
[]
["TOTAL AUSGABEN",{"$nulls":6},{"$f":"SUM(F81:H83)","v":0}]
[]
["EINKOMMEN - AUSGABEN",{"$nulls":6},{"$f":"F21-H85","v":0}]